[Event "*** SCC Grand Prix: Titled Tuesday Blitz"]
[Site "Chess.com"]
[Date "2020.06.09"]
[Round "7"]
[White "Alexander_Moskalenko"]
[Black "AnishGiri"]
[Result "1/2-1/2"]
[WhiteElo "2837"]
[BlackElo "2972"]
[TimeControl "180+1"]
[EndTime "10:15:18 PDT"]
[Termination "Game drawn by repetition"]

1. d4 {[%clk 0:03:00.9]} 1... Nf6 {[%clk 0:02:59.8]} 2. c4 {[%clk 0:03:00.2]}
2... e6 {[%clk 0:03:00.2]} 3. Nc3 {[%clk 0:02:59]} 3... Bb4 {[%clk 0:03:00]} 4.
e3 {[%clk 0:02:59]} 4... O-O {[%clk 0:02:59.6]} 5. Ne2 {[%clk 0:02:59]} 5... d5
{[%clk 0:02:59.4]} 6. a3 {[%clk 0:02:58.2]} 6... Bd6 {[%clk 0:02:59.6]} 7. cxd5
{[%clk 0:02:57.5]} 7... exd5 {[%clk 0:02:58.6]} 8. Nf4 {[%clk 0:02:51.3]} 8...
Bxf4 {[%clk 0:02:47.2]} 9. exf4 {[%clk 0:02:50.1]} 9... Re8+ {[%clk 0:02:46.1]}
10. Be2 {[%clk 0:02:47.1]} 10... c5 {[%clk 0:02:46.4]} 11. Be3 {[%clk 0:02:15]}
11... Ng4 {[%clk 0:02:45.4]} 12. Bxg4 {[%clk 0:02:06.5]} 12... Bxg4 {[%clk
0:02:45.1]} 13. Qxg4 {[%clk 0:02:07.4]} 13... cxd4 {[%clk 0:02:44]} 14. O-O
{[%clk 0:02:08]} 14... dxe3 {[%clk 0:02:43.7]} 15. fxe3 {[%clk 0:02:08.9]} 15...
d4 {[%clk 0:02:13.4]} 16. exd4 {[%clk 0:02:08.1]} 16... Qxd4+ {[%clk 0:02:13]}
17. Kh1 {[%clk 0:02:08.5]} 17... Nc6 {[%clk 0:02:13.4]} 18. Rad1 {[%clk
0:02:08.7]} 18... Qc4 {[%clk 0:02:06.9]} 19. Nd5 {[%clk 0:01:53.2]} 19... Red8
{[%clk 0:02:06.8]} 20. Nf6+ {[%clk 0:01:38.4]} 20... Kh8 {[%clk 0:02:04.8]} 21.
Qf5 {[%clk 0:01:38.3]} 21... gxf6 {[%clk 0:02:00.1]} 22. Qxf6+ {[%clk
0:01:39.2]} 22... Kg8 {[%clk 0:02:00.3]} 23. Qg5+ {[%clk 0:01:39.3]} 23... Kf8
{[%clk 0:01:57.1]} 24. Qh6+ {[%clk 0:01:39.5]} 24... Kg8 {[%clk 0:01:48.1]} 25.
Qg5+ {[%clk 0:01:39.7]} 25... Kf8 {[%clk 0:01:47.5]} 26. Qh6+ {[%clk 0:01:39.7]}
26... Kg8 {[%clk 0:01:44.6]} 27. Qg5+ {[%clk 0:01:39.4]} 1/2-1/2

[Event "*** SCC Grand Prix: Titled Tuesday Blitz"]
[Site "Chess.com"]
[Date "2020.06.09"]
[Round "7"]
[White "Khazieva_Elza"]
[Black "blitzcopter"]
[Result "1-0"]
[WhiteElo "2241"]
[BlackElo "2076"]
[TimeControl "180+1"]
[EndTime "10:15:34 PDT"]
[Termination "Khazieva_Elza won by resignation"]

1. e4 {[%clk 0:03:00.9]} 1... c6 {[%clk 0:02:59.5]} 2. d3 {[%clk 0:03:00.3]}
2... d5 {[%clk 0:03:00.4]} 3. Nd2 {[%clk 0:03:00.4]} 3... e5 {[%clk 0:02:59.3]}
4. Ngf3 {[%clk 0:03:00.4]} 4... Bd6 {[%clk 0:02:58.7]} 5. d4 {[%clk 0:03:00.3]}
5... exd4 {[%clk 0:02:49.9]} 6. exd5 {[%clk 0:03:00.1]} 6... c5 {[%clk
0:02:46.4]} 7. Bb5+ {[%clk 0:02:53.6]} 7... Bd7 {[%clk 0:02:41.3]} 8. Qe2+
{[%clk 0:02:53.2]} 8... Qe7 {[%clk 0:02:39.7]} 9. Ne4 {[%clk 0:02:51.3]} 9...
Kf8 {[%clk 0:02:01.6]} 10. Nxd6 {[%clk 0:02:41.4]} 10... Qxd6 {[%clk 0:02:02.5]}
11. O-O {[%clk 0:02:41.5]} 11... Nf6 {[%clk 0:01:55.9]} 12. Re1 {[%clk
0:02:25.9]} 12... Na6 {[%clk 0:01:33.8]} 13. Bf4 {[%clk 0:01:53.2]} 13... Qxf4
{[%clk 0:01:01.9]} 14. Qe7+ {[%clk 0:01:52.1]} 14... Kg8 {[%clk 0:01:02.3]} 15.
Bxd7 {[%clk 0:01:52.2]} 15... Nxd7 {[%clk 0:01:02.8]} 16. Qxd7 {[%clk
0:01:52.4]} 16... Qc7 {[%clk 0:00:58]} 17. Re8+ {[%clk 0:01:48.9]} 1-0

[Event "*** SCC Grand Prix: Titled Tuesday Blitz"]
[Site "Chess.com"]
[Date "2020.06.09"]
[Round "7"]
[White "Sanyura"]
[Black "Berant"]
[Result "1-0"]
[WhiteElo "2487"]
[BlackElo "2322"]
[TimeControl "180+1"]
[EndTime "10:15:37 PDT"]
[Termination "Sanyura won by checkmate"]

1. d4 {[%clk 0:02:55.1]} 1... Nf6 {[%clk 0:02:58.8]} 2. c4 {[%clk 0:02:54.8]}
2... e6 {[%clk 0:02:58.6]} 3. Nc3 {[%clk 0:02:54.7]} 3... d5 {[%clk 0:02:56.7]}
4. Nf3 {[%clk 0:02:55.6]} 4... c5 {[%clk 0:02:54.5]} 5. cxd5 {[%clk 0:02:54.5]}
5... Nxd5 {[%clk 0:02:55.4]} 6. e4 {[%clk 0:02:53.7]} 6... Nxc3 {[%clk
0:02:56.3]} 7. bxc3 {[%clk 0:02:54.3]} 7... cxd4 {[%clk 0:02:56.5]} 8. cxd4
{[%clk 0:02:55.2]} 8... Bb4+ {[%clk 0:02:56.6]} 9. Bd2 {[%clk 0:02:55.1]} 9...
Bxd2+ {[%clk 0:02:57.2]} 10. Qxd2 {[%clk 0:02:56]} 10... O-O {[%clk 0:02:57.3]}
11. Be2 {[%clk 0:02:52.7]} 11... Nd7 {[%clk 0:02:57.7]} 12. O-O {[%clk
0:02:52.5]} 12... b6 {[%clk 0:02:58.2]} 13. Rfd1 {[%clk 0:02:46.1]} 13... Bb7
{[%clk 0:02:58.2]} 14. d5 {[%clk 0:02:46.4]} 14... Nc5 {[%clk 0:02:36.5]} 15.
Qf4 {[%clk 0:02:27]} 15... exd5 {[%clk 0:02:32.4]} 16. exd5 {[%clk 0:02:22.1]}
16... Qf6 {[%clk 0:02:26.1]} 17. Qxf6 {[%clk 0:02:04.9]} 17... gxf6 {[%clk
0:02:27]} 18. Nh4 {[%clk 0:02:02.7]} 18... Rfe8 {[%clk 0:01:56.1]} 19. Bb5
{[%clk 0:01:59.5]} 19... Re5 {[%clk 0:01:53.1]} 20. d6 {[%clk 0:01:59.4]} 20...
a6 {[%clk 0:01:49.5]} 21. Bc4 {[%clk 0:01:55.5]} 21... Rd8 {[%clk 0:01:42.4]}
22. Rac1 {[%clk 0:01:48.8]} 22... Rh5 {[%clk 0:01:36.2]} 23. g3 {[%clk
0:01:48.2]} 23... Ne4 {[%clk 0:01:31.2]} 24. Bxf7+ {[%clk 0:01:36]} 24... Kxf7
{[%clk 0:01:26]} 25. Rc7+ {[%clk 0:01:35.3]} 25... Ke6 {[%clk 0:01:26]} 26. Re7#
{[%clk 0:01:35]} 1-0

[Event "*** SCC Grand Prix: Titled Tuesday Blitz"]
[Site "Chess.com"]
[Date "2020.06.09"]
[Round "7"]
[White "Kilpkonn"]
[Black "esrosenberg"]
[Result "1/2-1/2"]
[WhiteElo "2021"]
[BlackElo "2211"]
[TimeControl "180+1"]
[EndTime "10:16:02 PDT"]
[Termination "Game drawn by repetition"]

1. e4 {[%clk 0:02:47.7]} 1... e5 {[%clk 0:02:59.2]} 2. Nc3 {[%clk 0:02:46.7]}
2... Nf6 {[%clk 0:02:58.3]} 3. f4 {[%clk 0:02:46.8]} 3... d5 {[%clk 0:02:57.4]}
4. fxe5 {[%clk 0:02:46.7]} 4... Nxe4 {[%clk 0:02:56.8]} 5. d3 {[%clk 0:02:46.8]}
5... Qh4+ {[%clk 0:02:31.8]} 6. g3 {[%clk 0:02:43.8]} 6... Nxg3 {[%clk
0:02:31.6]} 7. Nf3 {[%clk 0:02:29.7]} 7... Qh5 {[%clk 0:02:30.6]} 8. Rg1 {[%clk
0:02:26.4]} 8... Nxf1 {[%clk 0:02:18.7]} 9. Rxf1 {[%clk 0:02:25.7]} 9... Bh3
{[%clk 0:01:53.8]} 10. Rf2 {[%clk 0:02:21]} 10... Bc5 {[%clk 0:01:25.9]} 11. d4
{[%clk 0:02:19.1]} 11... Bb4 {[%clk 0:01:26.5]} 12. Bd2 {[%clk 0:02:14]} 12...
c6 {[%clk 0:01:03.5]} 13. Qe2 {[%clk 0:02:11.6]} 13... O-O {[%clk 0:00:57.3]}
14. O-O-O {[%clk 0:02:10.2]} 14... Nd7 {[%clk 0:00:52.4]} 15. Rg1 {[%clk
0:02:09.4]} 15... Rae8 {[%clk 0:00:47.1]} 16. Rg5 {[%clk 0:02:08]} 16... Qh6
{[%clk 0:00:43.6]} 17. Rg3 {[%clk 0:02:00.4]} 17... Qh5 {[%clk 0:00:33.7]} 18.
Rg5 {[%clk 0:01:59.5]} 18... Qh6 {[%clk 0:00:33.7]} 19. Rg3 {[%clk 0:01:53.9]}
19... Qh5 {[%clk 0:00:31.3]} 20. Rg5 {[%clk 0:01:52.7]} 1/2-1/2

[Event "*** SCC Grand Prix: Titled Tuesday Blitz"]
[Site "Chess.com"]
[Date "2020.06.09"]
[Round "7"]
[White "WinstonSilvakov"]
[Black "Shuvalov"]
[Result "0-1"]
[WhiteElo "2116"]
[BlackElo "2458"]
[TimeControl "180+1"]
[EndTime "10:16:04 PDT"]
[Termination "Shuvalov won by resignation"]

1. d4 {[%clk 0:03:00.9]} 1... d5 {[%clk 0:02:55.2]} 2. e3 {[%clk 0:03:00.6]}
2... c5 {[%clk 0:02:55.1]} 3. c3 {[%clk 0:02:59.5]} 3... Nc6 {[%clk 0:02:52.5]}
4. f4 {[%clk 0:02:58.4]} 4... Nf6 {[%clk 0:02:48.6]} 5. Bd3 {[%clk 0:02:55.8]}
5... Bg4 {[%clk 0:02:44.6]} 6. Nf3 {[%clk 0:02:52.5]} 6... e6 {[%clk 0:02:44]}
7. Nbd2 {[%clk 0:02:50.3]} 7... Bd6 {[%clk 0:02:41.4]} 8. O-O {[%clk 0:02:46.4]}
8... cxd4 {[%clk 0:02:39.5]} 9. cxd4 {[%clk 0:02:44.9]} 9... O-O {[%clk
0:02:30.6]} 10. a3 {[%clk 0:02:42.3]} 10... Ne7 {[%clk 0:02:28.9]} 11. h3 {[%clk
0:02:38]} 11... Bf5 {[%clk 0:02:28.5]} 12. Be2 {[%clk 0:02:28.9]} 12... Rc8
{[%clk 0:02:24.8]} 13. Qa4 {[%clk 0:02:20.8]} 13... a6 {[%clk 0:02:15.8]} 14.
Ne5 {[%clk 0:02:17.6]} 14... Bc2 {[%clk 0:02:12.1]} 15. b3 {[%clk 0:02:12.2]}
15... Ra8 {[%clk 0:01:43.4]} 16. Ra2 {[%clk 0:01:26.9]} 16... b5 {[%clk
0:01:39.1]} 17. Bxb5 {[%clk 0:01:26.7]} 17... axb5 {[%clk 0:01:39.4]} 18. Qxb5
{[%clk 0:01:27.2]} 18... Qc7 {[%clk 0:01:25.2]} 19. Ndf3 {[%clk 0:01:14.9]}
19... Rfb8 {[%clk 0:01:20.7]} 0-1

[Event "*** SCC Grand Prix: Titled Tuesday Blitz"]
[Site "Chess.com"]
[Date "2020.06.09"]
[Round "7"]
[White "CrazyMartian"]
[Black "awesomevishesh"]
[Result "0-1"]
[WhiteElo "2286"]
[BlackElo "2411"]
[TimeControl "180+1"]
[EndTime "10:16:07 PDT"]
[Termination "awesomevishesh won by resignation"]

1. d4 {[%clk 0:03:00.9]} 1... Nf6 {[%clk 0:02:57.5]} 2. Bf4 {[%clk 0:02:54.7]}
2... g6 {[%clk 0:02:56.8]} 3. Nc3 {[%clk 0:02:54.1]} 3... d5 {[%clk 0:02:55.4]}
4. e3 {[%clk 0:02:54.3]} 4... Bg7 {[%clk 0:02:55.1]} 5. h4 {[%clk 0:02:52.4]}
5... h5 {[%clk 0:02:54.6]} 6. Nf3 {[%clk 0:02:51]} 6... c6 {[%clk 0:02:50.6]} 7.
Ne5 {[%clk 0:02:50.2]} 7... Nbd7 {[%clk 0:02:49.8]} 8. Bd3 {[%clk 0:02:48.4]}
8... Nxe5 {[%clk 0:02:46.4]} 9. Bxe5 {[%clk 0:02:48.2]} 9... O-O {[%clk
0:02:45.8]} 10. O-O {[%clk 0:02:26.6]} 10... Ng4 {[%clk 0:02:41.3]} 11. Bxg7
{[%clk 0:02:22.4]} 11... Kxg7 {[%clk 0:02:42.2]} 12. Ne2 {[%clk 0:02:06.4]}
12... e5 {[%clk 0:02:40.9]} 13. Ng3 {[%clk 0:01:25.3]} 13... Qxh4 {[%clk
0:02:38.3]} 14. Re1 {[%clk 0:01:24.8]} 14... exd4 {[%clk 0:02:29.4]} 15. exd4
{[%clk 0:01:21.6]} 15... Qh2+ {[%clk 0:02:21.7]} 16. Kf1 {[%clk 0:01:21.5]}
16... h4 {[%clk 0:02:21.1]} 17. Ke2 {[%clk 0:00:14.1]} 17... hxg3 {[%clk
0:02:10.2]} 18. Rh1 {[%clk 0:00:13.8]} 18... Qxg2 {[%clk 0:02:09.5]} 0-1

[Event "*** SCC Grand Prix: Titled Tuesday Blitz"]
[Site "Chess.com"]
[Date "2020.06.09"]
[Round "7"]
[White "kingmonkey2006"]
[Black "Vaathi_Coming"]
[Result "0-1"]
[WhiteElo "2578"]
[BlackElo "2832"]
[TimeControl "180+1"]
[EndTime "10:16:08 PDT"]
[Termination "Vaathi_Coming won by resignation"]

1. e4 {[%clk 0:03:00.6]} 1... e5 {[%clk 0:03:00.4]} 2. Nf3 {[%clk 0:03:00.3]}
2... Nc6 {[%clk 0:03:01]} 3. Bb5 {[%clk 0:02:59]} 3... a6 {[%clk 0:03:00]} 4.
Ba4 {[%clk 0:02:59.2]} 4... Nf6 {[%clk 0:03:00.5]} 5. O-O {[%clk 0:02:59.3]}
5... b5 {[%clk 0:03:01]} 6. Bb3 {[%clk 0:02:59.4]} 6... Bc5 {[%clk 0:03:01.6]}
7. a4 {[%clk 0:02:58.4]} 7... Rb8 {[%clk 0:03:01.4]} 8. axb5 {[%clk 0:02:58.3]}
8... axb5 {[%clk 0:03:01.3]} 9. d3 {[%clk 0:02:58.8]} 9... d6 {[%clk 0:03:00.1]}
10. h3 {[%clk 0:02:58.4]} 10... O-O {[%clk 0:02:55.7]} 11. Nc3 {[%clk
0:02:57.8]} 11... h6 {[%clk 0:02:55.3]} 12. Be3 {[%clk 0:02:57.1]} 12... Bxe3
{[%clk 0:02:46.4]} 13. fxe3 {[%clk 0:02:58]} 13... Be6 {[%clk 0:02:47.2]} 14.
Bxe6 {[%clk 0:02:42.5]} 14... fxe6 {[%clk 0:02:48.1]} 15. Qe1 {[%clk 0:02:37.2]}
15... Qe8 {[%clk 0:02:46.4]} 16. Qg3 {[%clk 0:02:36.3]} 16... b4 {[%clk
0:02:44.1]} 17. Ne2 {[%clk 0:02:33.8]} 17... Ne7 {[%clk 0:02:44.2]} 18. Nh4
{[%clk 0:02:25.2]} 18... Kh7 {[%clk 0:02:41.4]} 19. b3 {[%clk 0:02:12.3]} 19...
Qc6 {[%clk 0:02:38]} 20. Ra2 {[%clk 0:02:11.7]} 20... Ra8 {[%clk 0:02:36.4]} 21.
Rfa1 {[%clk 0:02:11.7]} 21... Rxa2 {[%clk 0:02:34.7]} 22. Rxa2 {[%clk
0:02:12.6]} 22... Ra8 {[%clk 0:02:32.3]} 23. Rxa8 {[%clk 0:02:13.1]} 23... Qxa8
{[%clk 0:02:33.2]} 24. Qe1 {[%clk 0:02:13.5]} 24... c5 {[%clk 0:02:30.9]} 25.
Qb1 {[%clk 0:02:10.6]} 25... Nxe4 {[%clk 0:02:20.1]} 26. dxe4 {[%clk 0:02:00.4]}
26... Qxe4 {[%clk 0:02:21]} 27. Nf3 {[%clk 0:01:37.7]} 27... Qxe3+ {[%clk
0:02:20.4]} 28. Kf1 {[%clk 0:01:38.3]} 28... e4 {[%clk 0:02:19.4]} 29. Nh2
{[%clk 0:01:26.8]} 29... Nd5 {[%clk 0:02:18]} 30. Ng4 {[%clk 0:01:17.4]} 30...
Qxe2+ {[%clk 0:02:16.3]} 31. Kxe2 {[%clk 0:01:04.2]} 31... Nc3+ {[%clk
0:02:16.4]} 32. Ke3 {[%clk 0:01:04.7]} 32... Nxb1 {[%clk 0:02:17.3]} 33. Kxe4
{[%clk 0:01:05.6]} 33... Nc3+ {[%clk 0:02:16.9]} 34. Kd3 {[%clk 0:01:05.8]}
34... Kg6 {[%clk 0:02:16.6]} 35. Nf2 {[%clk 0:01:05.6]} 35... Kf5 {[%clk
0:02:15.8]} 36. g3 {[%clk 0:01:04.8]} 36... h5 {[%clk 0:02:14.1]} 0-1

[Event "*** SCC Grand Prix: Titled Tuesday Blitz"]
[Site "Chess.com"]
[Date "2020.06.09"]
[Round "7"]
[White "XiaoKangZhong"]
[Black "VladimirBugayev"]
[Result "1-0"]
[WhiteElo "2393"]
[BlackElo "2268"]
[TimeControl "180+1"]
[EndTime "10:16:12 PDT"]
[Termination "XiaoKangZhong won by checkmate"]

1. e4 {[%clk 0:03:00.9]} 1... c6 {[%clk 0:02:59.4]} 2. d4 {[%clk 0:03:00.3]}
2... d5 {[%clk 0:02:59.8]} 3. e5 {[%clk 0:03:01]} 3... Bf5 {[%clk 0:02:56.9]} 4.
h4 {[%clk 0:02:57.6]} 4... h6 {[%clk 0:02:54]} 5. g4 {[%clk 0:02:55.6]} 5... Be4
{[%clk 0:02:53.8]} 6. f3 {[%clk 0:02:55.2]} 6... Bh7 {[%clk 0:02:52.9]} 7. e6
{[%clk 0:02:53.8]} 7... Qd6 {[%clk 0:02:52.9]} 8. exf7+ {[%clk 0:02:53.2]} 8...
Kxf7 {[%clk 0:02:53.1]} 9. Ne2 {[%clk 0:02:49.5]} 9... e5 {[%clk 0:02:49.3]} 10.
dxe5 {[%clk 0:02:46]} 10... Qxe5 {[%clk 0:02:49.1]} 11. Nc3 {[%clk 0:02:43.7]}
11... Bb4 {[%clk 0:02:44.5]} 12. Bf4 {[%clk 0:02:34.6]} 12... Bxc3+ {[%clk
0:02:42.5]} 13. bxc3 {[%clk 0:02:35.5]} 13... Qf6 {[%clk 0:02:30.5]} 14. g5
{[%clk 0:02:17.1]} 14... Qf5 {[%clk 0:02:26.2]} 15. Bh3 {[%clk 0:02:03]} 15...
Qxc2 {[%clk 0:02:18.4]} 16. Qd4 {[%clk 0:02:01.5]} 16... hxg5 {[%clk 0:01:59.2]}
17. hxg5 {[%clk 0:01:39.2]} 17... Bd3 {[%clk 0:01:58]} 18. g6+ {[%clk
0:01:35.2]} 18... Kf8 {[%clk 0:01:44.1]} 19. Bd6+ {[%clk 0:01:20.6]} 19... Ne7
{[%clk 0:01:43.8]} 20. Qf4+ {[%clk 0:01:11.7]} 20... Bf5 {[%clk 0:01:32.1]} 21.
Bxf5 {[%clk 0:00:57.6]} 21... Rxh1+ {[%clk 0:01:30.3]} 22. Kf2 {[%clk
0:00:57.6]} 22... Rh2+ {[%clk 0:01:21.9]} 23. Qxh2 {[%clk 0:00:56.5]} 23... Qxf5
{[%clk 0:01:20.9]} 24. Qh8# {[%clk 0:00:56]} 1-0

[Event "*** SCC Grand Prix: Titled Tuesday Blitz"]
[Site "Chess.com"]
[Date "2020.06.09"]
[Round "7"]
[White "LyonBeast"]
[Black "Firouzja2003"]
[Result "1/2-1/2"]
[WhiteElo "2976"]
[BlackElo "3138"]
[TimeControl "180+1"]
[EndTime "10:16:27 PDT"]
[Termination "Game drawn by agreement"]

1. d4 {[%clk 0:03:00.9]} 1... Nf6 {[%clk 0:02:59.1]} 2. Nf3 {[%clk 0:02:59.8]}
2... d5 {[%clk 0:02:55.9]} 3. c4 {[%clk 0:02:58.8]} 3... e6 {[%clk 0:02:55.7]}
4. e3 {[%clk 0:02:57.1]} 4... dxc4 {[%clk 0:02:47.3]} 5. Bxc4 {[%clk 0:02:56.3]}
5... c5 {[%clk 0:02:47.9]} 6. O-O {[%clk 0:02:56.6]} 6... a6 {[%clk 0:02:47.7]}
7. dxc5 {[%clk 0:02:56.3]} 7... Qxd1 {[%clk 0:02:46.9]} 8. Rxd1 {[%clk
0:02:55.7]} 8... Bxc5 {[%clk 0:02:47.5]} 9. b3 {[%clk 0:02:56.2]} 9... b6 {[%clk
0:02:36.6]} 10. Bb2 {[%clk 0:02:55.5]} 10... Bb7 {[%clk 0:02:36.5]} 11. Nc3
{[%clk 0:02:54.8]} 11... Nbd7 {[%clk 0:02:32.6]} 12. Rac1 {[%clk 0:02:53.7]}
12... Rc8 {[%clk 0:02:30]} 13. Na4 {[%clk 0:02:35.7]} 13... Be7 {[%clk
0:02:14.4]} 14. Bxf6 {[%clk 0:02:34.7]} 14... Bxf6 {[%clk 0:02:13.9]} 15. Rxd7
{[%clk 0:02:34.5]} 15... Kxd7 {[%clk 0:02:11]} 16. Nxb6+ {[%clk 0:02:34.6]}
16... Ke7 {[%clk 0:02:11]} 17. Nxc8+ {[%clk 0:02:35]} 17... Rxc8 {[%clk
0:02:11.7]} 18. Kf1 {[%clk 0:02:31.6]} 18... Bxf3 {[%clk 0:02:03]} 19. gxf3
{[%clk 0:02:31.1]} 19... g5 {[%clk 0:02:03.1]} 20. h3 {[%clk 0:02:29.1]} 20...
a5 {[%clk 0:02:01.9]} 21. Ke2 {[%clk 0:02:28.5]} 21... Be5 {[%clk 0:02:01.3]}
22. Rg1 {[%clk 0:02:26.1]} 22... h6 {[%clk 0:02:00.9]} 23. Rh1 {[%clk
0:02:20.8]} 23... Bf6 {[%clk 0:01:56.6]} 24. Rc1 {[%clk 0:02:07.7]} 24... Be5
{[%clk 0:01:51.3]} 25. Rc2 {[%clk 0:02:07.8]} 25... Rc7 {[%clk 0:01:49.8]} 26.
Rd2 {[%clk 0:01:59.5]} 26... Rd7 {[%clk 0:01:47.4]} 27. Bd3 {[%clk 0:01:58.9]}
27... Rc7 {[%clk 0:01:37.7]} 28. Bb5 {[%clk 0:01:58.4]} 28... Bc3 {[%clk
0:01:37.5]} 29. Rc2 {[%clk 0:01:56]} 29... Be5 {[%clk 0:01:36.9]} 30. Bc4 {[%clk
0:01:51]} 30... Rd7 {[%clk 0:01:28.9]} 31. a3 {[%clk 0:01:49.9]} 31... Bd6
{[%clk 0:01:27.2]} 32. Ra2 {[%clk 0:01:48.8]} 32... Bc5 {[%clk 0:01:25.1]} 33.
b4 {[%clk 0:01:37.7]} 33... axb4 {[%clk 0:01:24.6]} 34. a4 {[%clk 0:01:38.3]}
34... Rc7 {[%clk 0:01:16.6]} 35. Bb3 {[%clk 0:01:36.5]} 35... Ba7 {[%clk
0:01:09.5]} 36. Rc2 {[%clk 0:01:36.5]} 36... Rxc2+ {[%clk 0:01:05.3]} 37. Bxc2
{[%clk 0:01:37.4]} 1/2-1/2

[Event "*** SCC Grand Prix: Titled Tuesday Blitz"]
[Site "Chess.com"]
[Date "2020.06.09"]
[Round "7"]
[White "MNyuyu"]
[Black "rugbyclub"]
[Result "1-0"]
[WhiteElo "2357"]
[BlackElo "2121"]
[TimeControl "180+1"]
[EndTime "10:16:33 PDT"]
[Termination "MNyuyu won by resignation"]

1. d4 {[%clk 0:03:00.9]} 1... Nf6 {[%clk 0:02:57.2]} 2. Nf3 {[%clk 0:03:00.3]}
2... d5 {[%clk 0:02:54.3]} 3. Bf4 {[%clk 0:02:59.8]} 3... e6 {[%clk 0:02:53.8]}
4. e3 {[%clk 0:03:00]} 4... Bd6 {[%clk 0:02:53.8]} 5. Bg3 {[%clk 0:03:00]} 5...
O-O {[%clk 0:02:53.6]} 6. Bd3 {[%clk 0:03:00.2]} 6... b6 {[%clk 0:02:53.9]} 7.
Nbd2 {[%clk 0:03:00.3]} 7... c5 {[%clk 0:02:52.2]} 8. c3 {[%clk 0:02:59.9]} 8...
Ba6 {[%clk 0:02:52.1]} 9. Qe2 {[%clk 0:02:59.3]} 9... Bxd3 {[%clk 0:02:48.8]}
10. Qxd3 {[%clk 0:02:59]} 10... Nc6 {[%clk 0:02:49.3]} 11. Ne5 {[%clk
0:02:56.6]} 11... Bxe5 {[%clk 0:02:44.5]} 12. dxe5 {[%clk 0:02:55.1]} 12... Nd7
{[%clk 0:02:43]} 13. f4 {[%clk 0:02:53]} 13... f5 {[%clk 0:02:30.3]} 14. exf6
{[%clk 0:02:44]} 14... Nxf6 {[%clk 0:02:29.2]} 15. O-O {[%clk 0:02:40.2]} 15...
Qe8 {[%clk 0:02:26.6]} 16. e4 {[%clk 0:02:36.7]} 16... Rd8 {[%clk 0:02:25.3]}
17. e5 {[%clk 0:02:34.9]} 17... Nh5 {[%clk 0:02:22.3]} 18. Rad1 {[%clk
0:02:27.5]} 18... g6 {[%clk 0:02:21]} 19. Nf3 {[%clk 0:02:20.8]} 19... Nxf4
{[%clk 0:02:17.6]} 20. Qd2 {[%clk 0:02:18.6]} 20... Nh5 {[%clk 0:02:14.6]} 21.
Qh6 {[%clk 0:02:16.2]} 21... Nxg3 {[%clk 0:02:04.5]} 22. hxg3 {[%clk 0:02:15.9]}
22... Rd7 {[%clk 0:01:40.2]} 23. Rf2 {[%clk 0:02:11.7]} 23... Qb8 {[%clk
0:01:06.2]} 24. Rdf1 {[%clk 0:02:07.1]} 24... Qc7 {[%clk 0:00:28]} 25. Ng5
{[%clk 0:02:04.4]} 25... Rxf2 {[%clk 0:00:26.4]} 26. Rxf2 {[%clk 0:02:04.1]}
26... Qd8 {[%clk 0:00:12.8]} 27. Nxe6 {[%clk 0:01:59.7]} 1-0

[Event "*** SCC Grand Prix: Titled Tuesday Blitz"]
[Site "Chess.com"]
[Date "2020.06.09"]
[Round "7"]
[White "j_coca"]
[Black "Unknown_IM"]
[Result "0-1"]
[WhiteElo "2213"]
[BlackElo "2464"]
[TimeControl "180+1"]
[EndTime "10:16:35 PDT"]
[Termination "Unknown_IM won by resignation"]

1. f4 {[%clk 0:03:00.9]} 1... e5 {[%clk 0:02:59.7]} 2. fxe5 {[%clk 0:02:50]}
2... d6 {[%clk 0:02:56]} 3. exd6 {[%clk 0:02:49.9]} 3... Bxd6 {[%clk 0:02:56.9]}
4. Nf3 {[%clk 0:02:49.7]} 4... g5 {[%clk 0:02:57.1]} 5. d4 {[%clk 0:02:49.5]}
5... g4 {[%clk 0:02:56.6]} 6. Ng5 {[%clk 0:02:48.9]} 6... f5 {[%clk 0:02:46.6]}
7. e4 {[%clk 0:02:48.5]} 7... h6 {[%clk 0:02:44.2]} 8. Nh3 {[%clk 0:02:19]} 8...
gxh3 {[%clk 0:02:40.8]} 9. Qh5+ {[%clk 0:02:18.1]} 9... Kf8 {[%clk 0:02:39.3]}
10. e5 {[%clk 0:02:15.8]} 10... Be7 {[%clk 0:02:38.3]} 11. Bc4 {[%clk
0:02:13.1]} 11... Rh7 {[%clk 0:02:24.1]} 12. c3 {[%clk 0:02:10.8]} 12... Bg5
{[%clk 0:02:15.8]} 13. Nd2 {[%clk 0:02:09.6]} 13... hxg2 {[%clk 0:02:13.4]} 14.
Rg1 {[%clk 0:02:09.4]} 14... Bh4+ {[%clk 0:02:13.3]} 15. Kd1 {[%clk 0:02:09.1]}
15... Qg5 {[%clk 0:02:12.9]} 16. Qf3 {[%clk 0:02:08.3]} 16... Qg4 {[%clk
0:02:06.9]} 17. Rxg2 {[%clk 0:02:07.5]} 17... Qxf3+ {[%clk 0:02:07.1]} 18. Nxf3
{[%clk 0:02:08.4]} 18... Bg5 {[%clk 0:02:05.2]} 19. h4 {[%clk 0:02:04.8]} 19...
b5 {[%clk 0:01:52.8]} 20. Bb3 {[%clk 0:02:00.8]} 20... Bb7 {[%clk 0:01:50.9]}
21. Ke2 {[%clk 0:02:00.7]} 21... Bxc1 {[%clk 0:01:27.2]} 22. Rxg8+ {[%clk
0:01:58.9]} 22... Ke7 {[%clk 0:01:27.7]} 23. Rxc1 {[%clk 0:01:57.1]} 23... Nd7
{[%clk 0:01:28.2]} 24. Rxa8 {[%clk 0:01:55.8]} 24... Bxa8 {[%clk 0:01:29.1]} 25.
Rg1 {[%clk 0:01:54.8]} 25... a5 {[%clk 0:01:25.8]} 26. Rg8 {[%clk 0:01:51.2]}
26... Be4 {[%clk 0:01:23]} 27. Nd2 {[%clk 0:01:34.5]} 27... a4 {[%clk
0:01:20.9]} 28. Bd1 {[%clk 0:01:33.8]} 28... Bd5 {[%clk 0:01:20.7]} 29. a3
{[%clk 0:01:33.2]} 29... Bxg8 {[%clk 0:01:20.3]} 0-1